Cogmind - Beta 11 X9 @@@ ROGUE MODE // 2022.01.23 @ 07:21:29 Player: LU-1G1 Result: Destroyed by S-10 Pest with Light Assault Rifle Performance ------------- Evolutions (0) 0 Regions Visited (2) 400 Robots Destroyed (24) 120 Value Destroyed (446) 446 Prototype IDs (0) 0 Alien Tech Used (0) 0 Bonus (0) 0 TOTAL SCORE: 966 Bonus ------- None Cogmind --------- Core Integrity 0/250 Matter 261/300 Energy 100/100 System Corruption 1% Temperature Cool (0) Movement Core (150) Ox2 Location -10/Mines Parts ------- > --- POWER (1) -------- (None) > --- PROPULSION (2) --- (None) > --- UTILITY (2) ------ Small Storage Unit > --- WEAPON (2) ------- Maul > --- INVENTORY (8) ---- Light Nuclear Core Compact Wheel Flight Unit Flight Unit Flight Unit Particle Gun Particle Gun Peak State ------------ > --- POWER ------------ Light Ion Engine > --- PROPULSION ------- Flight Unit Flight Unit > --- UTILITY ---------- Small Storage Unit Power Shielding > --- WEAPON ----------- Light Assault Rifle Light Assault Rifle > --- INVENTORY -------- Light Nuclear Core Light Treads Aluminum Leg Wheel Compact Wheel Particle Gun Particle Gun Maul [Rating: 8] Favorites ----------- Power Ion Engine Engine Ion Engine Propulsion Light Treads Treads Light Treads Flight Unit Flight Unit Utility Small Storage Unit Storage Small Storage Unit Protection Power Shielding Weapon Light Assault Rifle Ballistic Gun Light Assault Rifle Impact Weapon Maul Build | -11 -10 -10 ------- Run | Scr Mat Min Slots Evolved . | . . . Power . | . . . Propulsion . | . . . Utility . | . . . Weapon . | . . . Parts Attached 21 | 6 3 12 Power 3 | 1 1 1 Engine 3 | 1 1 1 Core . | . . . Reactor . | . . . Propulsion 8 | 2 2 4 Treads 4 | 2 2 . Leg . | . . . Wheel . | . . . Hover . | . . . Flight 4 | . . 4 Utility 2 | 1 . 1 Device . | . . . Storage 1 | 1 . . Processor . | . . . Hackware . | . . . Protection 1 | . . 1 Artifact . | . . . Weapon 8 | 2 . 6 Energy Gun . | . . . Energy Cannon . | . . . Ballistic Gun 7 | 2 . 5 Ballistic Cannon . | . . . Launcher . | . . . Special Weapon . | . . . Impact Weapon 1 | . . 1 Slashing Weapon . | . . . Piercing Weapon . | . . . Special Melee Weapon . | . . . Unidentified Prototypes . | . . . Parts Lost 6 | . . 6 Power 2 | . . 2 Propulsion 4 | . . 4 Utility . | . . . Weapon . | . . . Highest Loss Streak 3 | . . 3 Average Slot Usage (%) 77 | . 85 71 Engine 11 | . 14 8 Treads 19 | . 28 13 Flight 3 | . . 6 Storage 14 | . 14 14 Protection 3 | . . 6 Ballistic Gun 23 | . 28 20 Naked Turns . | . . . Heaviest Build 13 | 13 13 13 Greatest Support 40 | 40 40 40 Greatest Overweight (x) 3 | 3 . 3 Average Overweight (x) . | . . . Largest Inventory Capacity 8 | 8 8 8 Average Capacity 7 | 7 8 8 Most Carried 8 | 6 8 8 Average Carried 7 | 4 7 7 Final Capacity 8 | 8 8 8 Final Carried 8 | 6 8 7 Class Distribution -------------------- 100% | Mutant Dominant Class ---------------- Mutant | -10/Materials Mutant | -10/Mines Resources | -11 -10 -10 ----------- Run | Scr Mat Min Matter Collected 582 | 280 150 152 Remotely . | . . . Salvage Created 745 | 126 372 247 Parts 56 | 3 29 24 Haulers Intercepted 1 | . 1 . Recyclers Shooed 1 | 1 . . Parts Field Recycled . | . . . Retrieved Matter . | . . . Parts Self-Destructed . | . . . Prevented . | . . . Kills | -11 -10 -10 ------- Run | Scr Mat Min Combat Hostiles Destroyed 18 | . 6 12 Melee 1 | . . 1 Guns 17 | . 6 11 Classes Destroyed 7 | 2 4 1 Worker 1 | . 1 . Tunneler 1 | 1 . . Hauler 1 | . 1 . Recycler 1 | 1 . . Watcher 2 | . 2 . Swarmer 10 | . . 10 Grunt 8 | . 6 2 Best Kill Streak 3 | 2 2 3 Combat Bots Only 3 | . 2 3 Max Kills in Single Turn 1 | 1 1 1 Gunslinging . | . . . Exploded . | . . . Melee 1 | . . 1 Uniques/NPCs Destroyed . | . . . Combat | -11 -10 -10 -------- Run | Scr Mat Min Damage Taken 1049 | . 286 763 Core 256 | . 21 235 Absorbed by Shields . | . . . Core Remaining (%) 100 | 100 . . Volleys Fired 68 | 7 28 33 Largest 2 | 2 2 2 Hottest 40 | 40 40 40 Shots Fired 136 | 14 56 66 Gun 136 | 14 56 66 Cannon . | . . . Launcher . | . . . Special . | . . . Kinetic 136 | 14 56 66 Thermal . | . . . Explosive . | . . . Electromagnetic . | . . . Robot Hit Streak 13 | 4 13 5 Robot Miss Streak 5 | 1 2 5 Penetration Max . | . . . Secondary Targets 3 | . 1 2 Max Gunslinging Chain 1 | . 1 1 Shots Hit Robots 90 | 8 40 42 Core Hits 41 | 4 18 19 Critical Kills . | . . . Critical Parts Destroyed 2 | . . 2 Critical Strikes 2 | . . 2 Destroy 1 | . . 1 Smash 1 | . . 1 Melee Attacks 12 | . . 12 Impact 12 | . . 12 Slashing . | . . . Piercing . | . . . Sneak Attacks . | . . . Combat Hostiles . | . . . Follow-up Attacks . | . . . Damage Inflicted 1040 | 110 425 505 Guns 891 | 110 425 356 Cannons . | . . . Explosions . | . . . Melee 149 | . . 149 Ramming . | . . . Kinetic 891 | 110 425 356 Thermal . | . . . Explosive . | . . . Electromagnetic . | . . . Impact 149 | . . 149 Slashing . | . . . Piercing . | . . . Highest Corruption 1 | . 1 1 Average Corruption 1 | . 1 1 Corruption Purged . | . . . Effects 4 | . 2 2 Message Errors 2 | . 1 1 Energy Discharges 2 | . 1 1 Overload Shots . | . . . Overflow Damage 29 | . . 29 Projectiles . | . . . Explosions . | . . . Melee 29 | . . 29 Knockbacks . | . . . Impact . | . . . Kinetic . | . . . Secondary . | . . . Self-Inflicted Damage . | . . . Shots . | . . . Rammed 1 | . . 1 Targets Rammed 1 | . . 1 Kicked . | . . . Crushed . | . . . Highest Temperature 22 | . 15 22 Average Temperature 8 | . 7 10 Received Heat Transfer 261 | . 162 99 Siege Activations . | . . . Robots Corrupted . | . . . Combat Hostiles . | . . . Parts Fried . | . . . Impact Corruptions 1 | . . 1 Robots Melted . | . . . Combat Hostiles . | . . . Parts Melted . | . . . Heat Transferred . | . . . Parts Sabotaged . | . . . Parts Stolen . | . . . Parts Stripped . | . . . Power Chain Reactions . | . . . Missiles Intercepted . | . . . Alert | -11 -10 -10 ------- Run | Scr Mat Min Peak Influence 219 | 10 182 219 Initial 19 | . 6 19 Average 85 | 2 83 100 Maximum Alert Level 1 | . . 1 Low Security (%) 95 | 100 100 91 Level 1 4 | . . 8 Level 2 . | . . . Level 3 . | . . . Level 4 . | . . . Level 5 . | . . . High Security . | . . . Max Security . | . . . Squads Dispatched 3 | . 3 . Investigation 2 | . 2 . Extermination . | . . . Reinforcement 1 | . 1 . Assault . | . . . Garrison . | . . . Intercept . | . . . Construction Impeded . | . . . Haulers Reinforced . | . . . Active Scanning Responses . | . . . Cargo Convoy Interrupts . | . . . Stealth | -11 -10 -10 --------- Run | Scr Mat Min Distress Signals . | . . . Communications Jammed . | . . . Distress Signals . | . . . Times Spotted 29 | . 11 18 Peak Tracking Total 3 | . 2 3 Tactical Retreats 3 | . . 3 Traps | -11 -10 -10 ------- Run | Scr Mat Min Traps Triggered 3 | . 3 . Indirectly . | . . . Trap Hack Attempts . | . . . Triggered . | . . . Disarmed . | . . . Reprogrammed . | . . . Reused . | . . . Traps Extracted . | . . . Installed . | . . . Triggered . | . . . Machines | -11 -10 -10 ---------- Run | Scr Mat Min Machines Disabled . | . . . Max in Single Turn . | . . . Machines Sabotaged . | . . . Garrisons Compromised . | . . . Overloaded Fab Kills . | . . . Hacking | -11 -10 -10 --------- Run | Scr Mat Min Machines Accessed 2 | . 2 . Terminals 2 | . 2 . Fabricators . | . . . Repair Stations . | . . . Recycling Units . | . . . Scanalyzers . | . . . Garrison Access . | . . . Total Hacks 6 | . 6 . Successful 1 | . 1 . Failed 5 | . 5 . Catastrophic 1 | . 1 . Database Lockouts . | . . . Manual 6 | . 6 . Terminals 6 | . 6 . Fabricators . | . . . Repair Stations . | . . . Recycling Units . | . . . Scanalyzers . | . . . Garrison Access . | . . . Terminal Hacks 1 | . 1 . Part Schematic 1 | . 1 . Fabricator Hacks . | . . . Repair Station Hacks . | . . . Recycling Unit Hacks . | . . . Scanalyzer . | . . . Garrison Access Hacks . | . . . Unauthorized Hacks . | . . . Terminals . | . . . Fabricators . | . . . Repair Stations . | . . . Recycling Units . | . . . Scanalyzers . | . . . Garrison Access . | . . . Data Cores Recovered . | . . . Used . | . . . Hacking Detections 2 | . 2 . Full Trace Events 2 | . 2 . Feedback Events . | . . . Feedback Blocked . | . . . Robot Schematics Acquired . | . . . Robots Built . | . . . Authchips . | . . . Time . | . . . Total Robot Build Rating . | . . . Part Schematics Acquired 1 | . 1 . Parts Built . | . . . Authchips . | . . . Time . | . . . Total Part Build Rating . | . . . Parts Repaired . | . . . Time . | . . . Parts Recycled . | . . . Recycled Matter . | . . . Retrieved Matter . | . . . Retrieved Components . | . . . Parts Scanalyzed . | . . . Part Schematics Acquired . | . . . Parts Damaged . | . . . Bothacking | -11 -10 -10 ------------ Run | Scr Mat Min Used RIF Installer . | . . . Robots Hacked . | . . . Non-combat . | . . . Combat . | . . . Robot Hacks Applied . | . . . Relay Couplers Released . | . . . Fabnet Peak Effective % . | . . . Robots Rewired . | . . . Allies Hacked . | . . . Hacks Repelled . | . . . Allies | -11 -10 -10 -------- Run | Scr Mat Min Total Allies . | . . . Largest Group . | . . . Highest-Rated Group . | . . . Highest-Rated Ally . | . . . Total Orders . | . . . Ally Attacks . | . . . Total Damage . | . . . Kills . | . . . Allies Corrupted . | . . . Allies Melted . | . . . Intel | -11 -10 -10 ------- Run | Scr Mat Min Robot Analysis Total . | . . . Derelict Logs Recovered 2 | . . 2 Drone Launches . | . . . Drone Recoveries . | . . . Exploration | -11 -10 -10 ------------- Run | Scr Mat Min Turns Passed 1405 | 118 555 732 Spaces Moved 996 | 57 271 668 Core 16 | 14 . 2 Treads 569 | 43 271 255 Legs . | . . . Wheels . | . . . Hover . | . . . Flight 411 | . . 411 Fastest Speed 37 | 50 160 37 Average Speed 108 | 148 160 84 Slowest Speed 200 | 200 160 200 Overloaded Moves . | . . . Propulsion Burnouts . | . . . Robots Hopped 4 | . . 4 Cave-ins Triggered . | . . . Exploration Rate (%) 52 | 4 55 98 Regions Visited 2 Branch Regions 1 Pre-discovered Areas 1 | . . 1 Known Exits Taken . | . . . Unknown Exits Taken 2 | 1 1 . Scrap Searched 1 | . . 1 Spaces Dug . | . . . Terrain Destroyed . | . . . Melee . | . . . Projectile . | . . . AOE . | . . . Terrain Rammed . | . . . Walls Destroyed . | . . . Machines Disabled . | . . . Actions | -11 -10 -10 --------- Run | Scr Mat Min Total 1172 | 75 343 754 Wait 50 | . 34 16 Move 986 | 56 270 660 Hop 4 | . . 4 Pick Up 14 | 6 5 3 Fast Attach 13 | 6 3 4 Attach 1 | . . 1 Detach . | . . . Swap 7 | . . 7 Drop 16 | . 3 13 Fire 68 | 7 28 33 Melee 12 | . . 12 Ram . | . . . Kick . | . . . Crush 1 | . . 1 Escape Stasis . | . . . Rewire . | . . . Trap . | . . . Miscellaneous . | . . . Route ------- -11/Scrapyard -10/Materials (discovered 3 exits: [*Mat x2] / [*Min]) -10/Mines (discovered 2 exits: [*Mat x2]) History --------- Turn | Location | Event 18 | -11/Scrapyard | Discovered new exit (range 16) 119 | -11/Scrapyard | Entered Materials 307 | -10/Materials | Build established: Mutant 310 | -10/Materials | Discovered new exit (range 8) 583 | -10/Materials | Discovered new exit (range 13) 634 | -10/Materials | Discovered new exit (range 11) 674 | -10/Materials | Entered Mines 890 | -10/Mines | Discovered new exit (range 4) 1066 | -10/Mines | Learned Materials terminal intel 1135 | -10/Mines | Learned location of Zion (-6) 1224 | -10/Mines | Discovered new exit (range 5) 1379 | -10/Mines | Core integrity fell below 50% 1397 | -10/Mines | Core integrity fell below 20% 1406 | -10/Mines | Destroyed by S-10 Pest with Light Assault Rifle Last Messages --------------- 01210_ Dropped Lgt. Treads. 01211_ Acquired Flight Unit. 01215_ Dropped Aluminum Leg. 01216_ Acquired Flight Unit. 01217_ Dropped Wheel. 01217_ Acquired Flight Unit. 01224_ EXIT=FOUND 01298_ Z<3VGHYRZ/HN7A# YBHD/#,FV 01331_ Dropped Flight Unit. 01332_ Acquired 4 matter. 01334_ Dropped Flight Unit. 01377_ Lgt. Ion Engine destroyed. 01377_ Flight Unit destroyed. 01379_ S-10 Pest destroyed. 01384_ Flight Unit destroyed. 01389_ S-10 Pest suffers critical hit (Smash). 01389_ Destroyed Lgt. Ion Engine. 01389_ S-10 Pest system corrupted by crushing effect. 01392_ S-10 Pest misfires. Map ----- +----------------------------------------------------+ | | | | | | | | | | | | | | | | | | | | | | | | | | | | | | | | | | | | | | | | | | | ????????????????????????????????? | | ????????????????????????????????? | | ???????????????????????#####????? | | ??????????????????????## s##???? | | ??????????????????????# @ s#???? | | ??????????????????????#%""" #???? | | ??????????????????????# """ #???? | | ????????????????????### """ #???? | | ???????????????????## ##??? | | ###???????????????## u ##?? | | ##??????????????# #?? | | ##?????????????# #?? | | ##????????????## #?? | | #????????????## #?? | | #????????????# ##?? | | #????????????# #####??? | | ##????????????## #?###??? | | #??????????????# ## ##?? | | #??????????????# #?? | | #??????????????## #?? | | #???????????????## #?? | | ##????????????????# #?? | | #?????????????????# ##?? | | ##????????????????## #??? | | ##?????????????????# ##??? | | #??????????????????# ####???? | | ##??????????????##### ##??????? | | #???????????????# ##???????? | | ####????????????# #####????????? | +----------------------------------------------------+ Best States ------------- Heat Dissipation 25 Energy Generation 10 Energy Capacity 250 Matter Stores 300 Matter Capacity 300 Sight Range 16 Terrain Scan Density 10 Power Shielding 33 Evasion (%) 62 Recoil Reduction 2 Item Schematics ----------------- Huge Storage Unit | -10/Materials | Hacked Robot Schematics ------------------ None Fabricated ------------ Nothing Alien Tech Used ----------------- None Achievements -------------- None Challenges ------------ None Game ------ Seed IntegratedDeliveryScreen Manual? 0 Play Time 00:28:58 Cumulative 440.7 hours Start 2022.01.23 @ 01:01:26 End 2022.01.23 @ 07:21:29 Sessions 5 Manual Loads 0 Difficulty Rogue Special Mode None Game No. 427 Rogue 212 Adventurer 112 Explorer 103 Win Type - Total 29 Types 21/0/5/2/0/0/0/1/0 Lore% 86 Gallery% 90 Achievement% 80 Wizard Run 0 Options --------- ASCII 1 Keyboard 1 Movement Vi Keybinds 1 Fullscreen 2 Font 18/SmallcapsGlow Map View 76x50 Tactical HUD 1 Map Filters NONE Filters NONE Steam 1 RUN: d0b4e758-3de2-41df-9227-e61f2042bc5a